bitfinex/quotes_BTCUSD_20250615
["timestamp","ask_amount","ask_price","bid_price","bid_amount"]
[1749997919411,0.67666343,105520.0,105510.0,0.5023514]
[1749997919764,0.58051421,105520.0,105510.0,0.5023514]
[1749997919971,0.58051421,105520.0,105510.0,0.49287399]
[1749997920219,0.58051421,105520.0,105510.0,0.5023514]
[1749997921047,0.58051421,105520.0,105510.0,0.51182872]
[1749997922132,0.77005173,105520.0,105510.0,0.49287399]
[1749997922328,0.23044356,105520.0,105510.0,0.49287399]
[1749997922535,0.58051421,105520.0,105510.0,0.50235131]
[1749997922953,0.77005173,105520.0,105510.0,0.49287399]
[1749997923668,0.77005173,105520.0,105510.0,0.5023514]
[1749997924249,0.58051421,105520.0,105510.0,0.51182872]
[1749997924521,0.58051421,105520.0,105510.0,0.5023514]
[1749997924753,0.77005173,105520.0,105510.0,0.32723649]
[1749997924989,0.00947795,105500.0,105490.0,0.2274908]
[1749997925241,0.00947795,105500.0,105490.0,0.34041222]
[1749997925512,0.56804238,105500.0,105490.0,0.51549046]
[1749997925732,0.02843421,105500.0,105490.0,0.51549046]
[1749997925980,0.0379127,105500.0,105490.0,0.35937109]
[1749997926213,0.03791261,105500.0,105490.0,0.52697003]
[1749997926691,0.56804238,105500.0,105490.0,0.52997003]
[1749997928809,0.53960817,105500.0,105490.0,0.52997003]
[1749997930596,0.00947786,105500.0,105490.0,0.52997003]
[1749997930801,0.5508537,105500.0,105490.0,0.50755003]
[1749997931011,0.57656545,105500.0,105490.0,0.50755003]
[1749997931218,0.57656545,105500.0,105490.0,0.50751003]
[1749997931633,0.58604367,105500.0,105490.0,0.48471021]
[1749997931873,0.00947786,105500.0,105490.0,0.32875021]
[1749997932092,0.56033165,105500.0,105490.0,0.53041021]
[1749997932320,0.01895581,105500.0,105490.0,0.53041021]
[1749997932534,0.02072348,105500.0,105490.0,0.53041021]
[1749997932752,0.02072348,105500.0,105490.0,0.37445021]
[1749997932932,0.02072348,105500.0,105490.0,0.53049021]
[1749997933475,0.00176767,105500.0,105490.0,0.53049021]
[1749997933686,0.54137584,105500.0,105490.0,0.53049021]
[1749997933894,0.53960817,105500.0,105490.0,0.53053021]
[1749997934103,0.35895428,105510.0,105500.0,0.20853034]
[1749997934307,0.91751691,105510.0,105500.0,0.24030838]
[1749997934516,0.34947696,105510.0,105500.0,0.26370838]
[1749997935168,0.34,105510.0,105500.0,0.26370838]
[1749997935753,0.34947705,105510.0,105500.0,0.26370838]
[1749997935954,0.35895428,105510.0,105500.0,0.26470838]
[1749997936169,0.35895428,105510.0,105500.0,0.26570838]
[1749997936545,0.34947705,105510.0,105500.0,0.26570838]
[1749997940179,0.34447705,105510.0,105500.0,0.26570838]
[1749997940497,0.35395437,105510.0,105500.0,0.26570838]
[1749997940951,0.35395428,105510.0,105500.0,0.26570838]
[1749997941244,0.34447705,105510.0,105500.0,0.26570838]
[1749997942416,0.335,105510.0,105500.0,0.26570838]
[1749997942676,0.34447696,105510.0,105500.0,0.26570838]
[1749997942915,0.335,105510.0,105500.0,0.26570838]
[1749997944042,0.34447696,105510.0,105500.0,0.26570838]
[1749997944261,0.3539541,105510.0,105500.0,0.26570838]
[1749997944699,0.88408513,105510.0,105500.0,0.26570838]
[1749997945430,0.87460817,105510.0,105500.0,0.26570838]
[1749997945661,0.88408522,105510.0,105500.0,0.26570838]
[1749997945879,0.88408513,105510.0,105500.0,0.26570838]
[1749997947129,0.89356227,105510.0,105500.0,0.26570838]
[1749997947427,0.90303959,105510.0,105500.0,0.26570838]
[1749997947628,0.89356227,105510.0,105500.0,0.26570838]
[1749997947854,0.88408522,105510.0,105500.0,0.26570838]
[1749997948277,0.89356245,105510.0,105500.0,0.26570838]
[1749997949256,0.90303986,105510.0,105500.0,0.24230838]
[1749997949498,0.90303986,105510.0,105500.0,0.22000838]
[1749997950435,0.91251754,105510.0,105500.0,0.22000874]
[1749997950643,0.91251745,105510.0,105500.0,0.37596874]
[1749997951279,0.91251745,105510.0,105500.0,0.38544687]
[1749997951463,0.90303986,105510.0,105500.0,0.39492491]
[1749997951669,0.90303986,105510.0,105500.0,0.23896491]
[1749997951890,0.91251745,105510.0,105500.0,0.38544687]
[1749997952213,0.91251745,105510.0,105500.0,0.37596874]
[1749997952760,0.90303986,105510.0,105500.0,0.39492491]
[1749997953572,0.90303986,105510.0,105500.0,0.38544687]
[1749997953779,0.91251745,105510.0,105500.0,0.37596883]
[1749997954044,0.91251745,105510.0,105500.0,0.37596892]
[1749997954245,1.10207294,105510.0,105500.0,0.37596892]
[1749997954705,1.10207294,105510.0,105500.0,0.36645052]
[1749997954937,0.37290928,105510.0,105500.0,0.38540705]
[1749997955187,0.91251745,105510.0,105500.0,0.38540705]
[1749997955667,0.91251745,105510.0,105500.0,0.39488509]
[1749997955901,0.91251745,105510.0,105500.0,0.38540705]
[1749997956140,0.90303986,105510.0,105500.0,0.39488509]
[1749997956797,0.91251736,105510.0,105500.0,0.38540705]
[1749997958081,0.91251736,105510.0,105500.0,0.39488509]
[1749997958287,0.37290919,105510.0,105500.0,0.39488509]
[1749997958494,0.91251736,105510.0,105500.0,0.39488509]
[1749997958917,0.91251736,105510.0,105500.0,0.38540705]
[1749997959323,0.91251736,105510.0,105500.0,0.23896509]
[1749997959478,0.91251736,105510.0,105500.0,0.39488509]
[1749997959938,0.91251736,105510.0,105500.0,0.38540705]
[1749997960603,0.91251736,105510.0,105500.0,0.39488509]
[1749997960817,0.91251736,105510.0,105500.0,0.38540705]
[1749997961153,0.91251736,105510.0,105500.0,0.39488509]
[1749997961371,0.91251736,105510.0,105500.0,0.38540705]
[1749997961781,0.91251736,105510.0,105500.0,0.37592892]
[1749997961932,0.91251736,105510.0,105500.0,0.38540714]
[1749997962143,0.91251736,105510.0,105500.0,0.39488527]
[1749997962517,0.91251736,105510.0,105500.0,0.39488473]
[1749997964857,0.98015655,105510.0,105500.0,0.39488473]
[1749997965493,0.98015655,105510.0,105500.0,0.39476473]
[1749997965627,0.98015655,105510.0,105500.0,0.38528669]
[1749997966098,0.98963423,105510.0,105500.0,0.37580856]
[1749997966237,0.98015655,105510.0,105500.0,0.38528669]
[1749997966615,0.98963414,105510.0,105500.0,0.38528669]
[1749997967366,0.98015655,105510.0,105500.0,0.38528669]
[1749997967580,0.98015655,105510.0,105500.0,0.39476473]
[1749997969011,0.98015655,105510.0,105500.0,0.38528669]
[1749997969459,0.97067905,105510.0,105500.0,0.38528669]
[1749997969673,0.97067905,105510.0,105500.0,0.39476473]
[1749997970338,0.34447705,105510.0,105500.0,0.39476473]
[1749997970554,0.96120164,105510.0,105500.0,0.41806473]
[1749997970735,0.95172441,105510.0,105500.0,0.41806473]
[1749997970961,0.96120173,105510.0,105500.0,0.41806473]
[1749997971591,0.97067914,105510.0,105500.0,0.41806473]
[1749997972729,0.96120173,105510.0,105500.0,0.41806473]
[1749997973773,0.96120164,105510.0,105500.0,0.41806473]
[1749997973995,0.95172432,105510.0,105500.0,0.41806473]
[1749997974211,0.94224736,105510.0,105500.0,0.44056473]
[1749997974639,0.94224736,105510.0,105500.0,1.14405385]
[1749997974640,0.335,105510.0,105500.0,1.14405385]
[1749997974857,0.335,105510.0,105500.0,1.17247257]
[1749997975274,0.335,105510.0,105500.0,0.56522521]
[1749997975679,0.03600338,105530.0,105520.0,0.21796705]
[1749997975899,0.98325074,105530.0,105520.0,0.21796705]
[1749997976381,0.64325074,105530.0,105520.0,0.21796705]
[1749997976599,0.96430014,105530.0,105520.0,0.26346705]
[1749997976811,0.97377531,105530.0,105520.0,0.41914705]
[1749997977014,0.97777531,105530.0,105520.0,0.41914705]
[1749997977228,0.97977531,105530.0,105520.0,0.41914705]
[1749997978069,0.97777531,105530.0,105520.0,0.41914705]
[1749997978483,0.98825065,105530.0,105520.0,0.41914705]
[1749997978914,0.92603099,105530.0,105520.0,0.3766943]
[1749997979148,0.93550669,105530.0,105520.0,0.37364741]
[1749997979554,0.76093243,105530.0,105520.0,0.39638981]
[1749997979776,0.58992988,105530.0,105520.0,0.39638981]
[1749997980182,0.58045471,105530.0,105520.0,0.3963899]
[1749997980408,0.76797409,105530.0,105520.0,0.37743661]
[1749997980608,0.80975812,105530.0,105520.0,0.37743661]
[1749997980847,0.80975812,105530.0,105520.0,0.38791321]
[1749997981071,0.62023856,105530.0,105520.0,0.39738972]
[1749997981277,0.62971453,105530.0,105520.0,0.39738972]
[1749997981674,0.62023856,105530.0,105520.0,0.40686614]
[1749997982140,0.57745453,105530.0,105520.0,0.40686614]
[1749997982352,0.59300926,105530.0,105520.0,0.41634247]
[1749997983003,0.58353347,105530.0,105520.0,0.41634247]
[1749997983212,0.58353347,105530.0,105520.0,0.40686578]
[1749997983421,0.59300944,105530.0,105520.0,0.38791303]
[1749997983608,0.59300935,105530.0,105520.0,0.38791303]
[1749997983802,0.59300935,105530.0,105520.0,0.39638945]
[1749997984228,0.93300935,105530.0,105520.0,0.39738945]
[1749997984634,0.94248532,105530.0,105520.0,0.38691339]
[1749997984835,0.94248532,105530.0,105520.0,0.3963899]
[1749997985042,0.93300935,105530.0,105520.0,0.40786632]
[1749997985235,0.93300935,105530.0,105520.0,0.3983899]
[1749997986124,0.97671767,105530.0,105520.0,0.4003899]
[1749997986555,0.97671767,105530.0,105520.0,0.3776475]
[1749997986785,0.97671767,105530.0,105520.0,0.40037462]
[1749997987009,0.92353347,105530.0,105520.0,0.40985104]
[1749997987212,0.93300935,105530.0,105520.0,0.40985104]
[1749997987708,0.93300935,105530.0,105520.0,0.40037462]
[1749997987921,0.92353347,105530.0,105520.0,0.40985104]
[1749997988345,0.92353347,105530.0,105520.0,0.38712392]
[1749997988556,0.93300935,105530.0,105520.0,0.38712392]
[1749997989527,0.93300935,105530.0,105520.0,0.40984862]
[1749997989740,0.97963198,105530.0,105520.0,0.40984862]
[1749997989983,0.97963189,105530.0,105520.0,0.41932495]
[1749997990394,0.97963189,105530.0,105520.0,0.40984862]
[1749997990783,0.97963189,105530.0,105520.0,0.39089569]
[1749997991049,0.98910786,105530.0,105520.0,0.40984862]
[1749997991281,0.97963189,105530.0,105520.0,0.4003722]
[1749997991498,0.97963189,105530.0,105520.0,0.40984862]
[1749997991712,0.98910786,105530.0,105520.0,0.40984862]
[1749997991944,0.97963189,105530.0,105520.0,0.40984862]
[1749997992777,0.97963189,105530.0,105520.0,0.41932495]
[1749997992980,0.97963189,105530.0,105520.0,0.40984862]
[1749997993431,0.97963189,105530.0,105520.0,0.41932495]
[1749997994030,0.97963189,105530.0,105520.0,0.40984862]
[1749997994962,0.93300926,105530.0,105520.0,0.41932495]
[1749997995740,0.39345708,105530.0,105520.0,0.41932495]
[1749997995970,0.93300926,105530.0,105520.0,0.41932495]
[1749997997303,0.93300926,105530.0,105520.0,0.40984862]
[1749997997980,0.93300926,105530.0,105520.0,0.39660025]
[1749997998202,0.93300926,105530.0,105520.0,0.41933143]
[1749997998678,0.92353347,105530.0,105520.0,0.41933143]
[1749997998920,0.98153912,105530.0,105520.0,0.4193308]
[1749997999153,0.98153912,105530.0,105520.0,0.4402308]
[1749997999616,0.98153912,105530.0,105520.0,0.4615308]
[1749998002444,0.99101473,105530.0,105520.0,0.4615308]
[1749998002934,0.9720636,105530.0,105520.0,0.4615308]
[1749998003138,0.98153912,105530.0,105520.0,0.4615308]
[1749998004912,0.99101482,105530.0,105520.0,0.4615308]
[1749998005360,0.98153912,105530.0,105520.0,0.4615308]
[1749998006640,0.35555473,105530.0,105520.0,0.4615308]
[1749998007114,0.35555473,105530.0,105520.0,0.48994477]
[1749998007343,0.97206343,105530.0,105520.0,0.58618653]
[1749998007599,0.97206343,105530.0,105520.0,0.53504138]
[1749998007816,0.98153877,105530.0,105520.0,0.37936138]
[1749998008033,0.98153877,105530.0,105520.0,0.53492138]
[1749998008248,0.97206343,105530.0,105520.0,0.53492138]
[1749998008481,0.97206343,105530.0,105520.0,0.55768926]
[1749998008941,0.98153869,105530.0,105520.0,0.55768926]
[1749998009162,0.98153869,105530.0,105520.0,0.58614911]
[1749998009376,0.97206343,105530.0,105520.0,0.58614911]
[1749998010142,0.96258826,105530.0,105520.0,0.58614911]
[1749998011268,0.35555473,105530.0,105520.0,0.58614911]
[1749998011983,0.01555473,105530.0,105520.0,0.58614911]
[1749998012203,0.35555473,105530.0,105520.0,0.58614911]
[1749998012417,0.34,105530.0,105520.0,0.58614911]
[1749998012635,0.36776819,105530.0,105520.0,0.58614911]
[1749998015629,0.98427689,105530.0,105520.0,0.58610507]
[1749998016546,1.00322784,105530.0,105520.0,0.41159232]
[1749998016775,1.04327682,105530.0,105520.0,0.34100701]
[1749998016998,1.06222831,105530.0,105520.0,0.41927845]
[1749998017213,1.29424787,105530.0,105520.0,0.40980194]
[1749998017422,1.29424787,105530.0,105520.0,0.41927854]
[1749998017650,1.29424787,105530.0,105520.0,0.39081869]
[1749998017873,1.24472328,105530.0,105520.0,0.22578209]
[1749998018093,1.24472328,105530.0,105520.0,0.39081869]
[1749998018321,1.05520372,105530.0,105520.0,0.4002952]
[1749998018531,0.44817019,105530.0,105520.0,0.40977162]
[1749998018739,1.03380372,105530.0,105520.0,0.40977162]
[1749998018953,1.03380372,105530.0,105520.0,0.4002952]
[1749998019813,1.03380372,105530.0,105520.0,0.42875505]
[1749998020020,1.01270372,105530.0,105520.0,0.43823147]
[1749998020241,1.01270363,105530.0,105520.0,0.4477078]
[1749998020481,1.01270363,105530.0,105520.0,0.43823147]
[1749998020695,0.99375223,105530.0,105520.0,0.44770771]
[1749998020908,0.99375223,105530.0,105520.0,0.46800771]
[1749998021363,0.99375223,105530.0,105520.0,0.46600771]
[1749998021573,1.00322775,105530.0,105520.0,0.46500771]
[1749998021780,1.01270345,105530.0,105520.0,0.45553147]
[1749998021999,1.01270345,105530.0,105520.0,0.45453147]
[1749998022216,1.00322775,105530.0,105520.0,0.44370771]
[1749998022426,1.00322775,105530.0,105520.0,0.44770771]
[1749998022645,1.01270336,105530.0,105520.0,0.44670771]
[1749998023060,1.01270336,105530.0,105520.0,0.44970771]
[1749998023761,1.00322775,105530.0,105520.0,0.44970771]
[1749998024459,1.01270336,105530.0,105520.0,0.44970771]
[1749998024670,1.11832837,105530.0,105520.0,0.44023147]
[1749998024883,1.09937741,105530.0,105520.0,0.44970771]
[1749998026416,1.09937741,105530.0,105520.0,0.29414771]
[1749998026623,1.10885329,105530.0,105520.0,0.44023147]
[1749998027241,1.09937741,105530.0,105520.0,0.4497078]
[1749998027449,1.09937741,105530.0,105520.0,0.44023111]
[1749998027652,1.09937741,105530.0,105520.0,0.44970735]
[1749998027832,0.99375258,105530.0,105520.0,0.44970735]
[1749998028060,0.99375258,105530.0,105520.0,0.47150735]
[1749998028475,1.00322828,105530.0,105520.0,0.47150735]
[1749998028623,1.00322828,105530.0,105520.0,0.44023111]
[1749998028831,1.00322828,105530.0,105520.0,0.44970735]
[1749998029041,1.06884955,105530.0,105520.0,0.41827836]
[1749998029257,1.11214946,105530.0,105520.0,0.42475523]
[1749998029443,1.11214946,105530.0,105520.0,0.43723165]
[1749998029644,1.11214946,105530.0,105520.0,0.44023165]
[1749998029843,1.11214946,105530.0,105520.0,0.43723165]
[1749998030068,1.06884946,105530.0,105520.0,0.43723165]
[1749998030289,1.05937358,105530.0,105520.0,0.44670798]
[1749998030671,1.05937358,105530.0,105520.0,0.42775478]
[1749998030873,1.05937358,105530.0,105520.0,0.43423111]
[1749998031090,1.06884946,105530.0,105520.0,0.42671478]
[1749998031285,1.05937358,105530.0,105520.0,0.42871478]
[1749998031744,1.05937358,105530.0,105520.0,0.43819111]
[1749998031951,1.05937358,105530.0,105520.0,0.41923836]
[1749998031952,1.06884946,105530.0,105520.0,0.41923836]
[1749998032178,1.06884946,105530.0,105520.0,0.42871478]
[1749998032576,1.05937358,105530.0,105520.0,0.43819111]
[1749998032795,1.05937358,105530.0,105520.0,0.44766735]
[1749998033143,1.00322828,105530.0,105520.0,0.44766735]
[1749998033362,1.00322828,105530.0,105520.0,0.43819111]
[1749998033904,1.00322828,105530.0,105520.0,0.28267111]
[1749998034130,1.01270407,105530.0,105520.0,0.43819111]
[1749998034311,1.00322828,105530.0,105520.0,0.42871478]
[1749998034489,1.00322828,105530.0,105520.0,0.43819102]
[1749998034686,1.00322828,105530.0,105520.0,0.42871478]
[1749998034896,1.01270416,105530.0,105520.0,0.42871478]
[1749998035309,1.01270407,105530.0,105520.0,0.43819111]
[1749998035662,1.01270407,105530.0,105520.0,0.42871478]
[1749998036067,1.00322828,105530.0,105520.0,0.44766735]
[1749998036298,1.00322828,105530.0,105520.0,0.43819111]
[1749998037293,1.05635181,105530.0,105520.0,0.41923836]
[1749998037506,1.04687584,105530.0,105520.0,0.42671469]
[1749998037715,1.04687584,105530.0,105520.0,0.43619093]
[1749998037928,1.03740014,105530.0,105520.0,0.43619093]
[1749998038132,1.03740014,105530.0,105520.0,0.43719093]
[1749998038337,1.04687584,105530.0,105520.0,0.43419093]
[1749998038540,1.04687584,105530.0,105520.0,0.42771469]
[1749998038745,1.05635172,105530.0,105520.0,0.43071478]
[1749998039169,1.04687584,105530.0,105520.0,0.44019111]
[1749998039804,1.04687584,105530.0,105520.0,0.44966735]
[1749998040351,1.04687584,105530.0,105520.0,0.44019111]
[1749998040738,1.05635163,105530.0,105520.0,0.44019111]
[1749998040958,1.05635163,105530.0,105520.0,0.43071478]
[1749998041364,0.99375258,105530.0,105520.0,0.44019102]
[1749998041515,0.99375258,105530.0,105520.0,0.46159102]
[1749998042137,0.99375258,105530.0,105520.0,0.46159111]
[1749998042338,1.00322828,105530.0,105520.0,0.46159111]
[1749998042722,1.00322828,105530.0,105520.0,0.47106735]
[1749998042924,1.00322828,105530.0,105520.0,0.46159111]
[1749998043166,1.01270407,105530.0,105520.0,0.46159111]
[1749998043401,1.00322828,105530.0,105520.0,0.46159111]
[1749998043600,1.00322828,105530.0,105520.0,0.47106735]
[1749998044054,0.98427706,105530.0,105520.0,0.49146735]
[1749998044459,0.99375258,105530.0,105520.0,0.49146735]
[1749998044817,1.00322828,105530.0,105520.0,0.49146735]
[1749998045028,1.00322828,105530.0,105520.0,0.50098111]
[1749998045226,1.00322828,105530.0,105520.0,0.51045735]
[1749998046075,0.99375258,105530.0,105520.0,0.50098111]
[1749998046275,0.98427706,105530.0,105520.0,0.51045735]
[1749998046480,0.99375258,105530.0,105520.0,0.51045735]
[1749998047302,0.98427706,105530.0,105520.0,0.51045735]
[1749998047530,0.99375258,105530.0,105520.0,0.51045735]
[1749998048324,1.00322828,105530.0,105520.0,0.51045735]
[1749998048766,1.00322819,105530.0,105520.0,0.51045735]
[1749998048983,0.98427706,105530.0,105520.0,0.51045735]
[1749998049467,0.99375267,105530.0,105520.0,0.51045735]
[1749998050951,0.99375267,105530.0,105520.0,0.54840381]
[1749998051165,0.99375258,105530.0,105520.0,0.54840381]
[1749998051365,0.99375258,105530.0,105520.0,0.54540381]
[1749998051870,0.98427706,105530.0,105520.0,0.54940381]
[1749998053326,0.98427706,105530.0,105520.0,0.54640381]
[1749998053760,0.98427706,105530.0,105520.0,0.55140381]
[1749998053974,0.99375258,105530.0,105520.0,0.55140381]
[1749998056703,0.38671905,105530.0,105520.0,0.55140381]
[1749998056893,0.98427706,105530.0,105520.0,0.55140381]
[1749998057470,0.99375258,105530.0,105520.0,0.55140381]
[1749998057906,0.38671905,105530.0,105520.0,1.15843734]
[1749998058085,0.36776819,105530.0,105520.0,1.2546791]
[1749998058287,0.36776819,105530.0,105520.0,1.22621925]
[1749998060076,0.36776819,105530.0,105520.0,1.28313895]
[1749998060274,0.36776819,105530.0,105520.0,1.27813895]
[1749998060486,0.36776819,105530.0,105520.0,1.28413895]
[1749998060922,0.35,105550.0,105540.0,0.24022577]
[1749998061130,0.01004735,105550.0,105540.0,0.43877365]
[1749998061346,0.01952072,105550.0,105540.0,0.46722565]
[1749998061532,0.35952072,105550.0,105540.0,0.46722565]
[1749998061773,0.35004735,105550.0,105540.0,0.46722565]
[1749998062271,0.35952072,105550.0,105540.0,0.47022565]
[1749998063753,0.38822377,105550.0,105540.0,0.47022565]
[1749998063958,0.39769732,105550.0,105540.0,0.47022565]
[1749998064166,0.38822377,105550.0,105540.0,0.47022565]
[1749998064818,0.39769732,105550.0,105540.0,0.47022565]
[1749998066301,0.39769732,105550.0,105540.0,0.47012849]
[1749998066958,1.00473085,105550.0,105540.0,0.46712849]
[1749998067210,1.00473085,105550.0,105540.0,0.47012849]
[1749998067430,1.02367831,105550.0,105540.0,0.47012849]
[1749998067660,1.11903281,105550.0,105540.0,0.46712849]
[1749998068507,1.11903281,105550.0,105540.0,0.46912849]
[1749998068724,1.11903281,105550.0,105540.0,0.47412849]
[1749998069181,1.12850681,105550.0,105540.0,0.47412849]
[1749998069855,1.11903281,105550.0,105540.0,0.47412849]
[1749998071581,1.12850681,105550.0,105540.0,0.47412858]
[1749998071798,1.11903344,105550.0,105540.0,0.44572716]
[1749998072252,1.10955944,105550.0,105540.0,0.44572716]
[1749998072462,1.10955944,105550.0,105540.0,0.45520161]
[1749998072824,1.01420494,105550.0,105540.0,0.45520161]
[1749998073490,1.02367885,105550.0,105540.0,0.45520161]
[1749998074671,1.01420494,105550.0,105540.0,0.45520161]
[1749998075215,1.01420494,105550.0,105540.0,0.47419161]
[1749998078234,0.41664541,105550.0,105540.0,0.46471716]
[1749998078462,1.01420494,105550.0,105540.0,0.47419161]
[1749998078877,1.00473112,105550.0,105540.0,0.47419161]
[1749998079112,1.01420503,105550.0,105540.0,0.47415161]
[1749998080708,1.01420503,105550.0,105540.0,0.30923716]
[1749998080925,1.01420503,105550.0,105540.0,0.46467725]
[1749998081180,1.01420503,105550.0,105540.0,0.47415179]
[1749998081394,1.01420503,105550.0,105540.0,0.48362624]
[1749998081848,1.01420503,105550.0,105540.0,0.47415179]
[1749998082145,1.01420503,105550.0,105540.0,0.48362624]
[1749998082719,1.04306573,105550.0,105540.0,0.47415179]
[1749998083147,1.03359182,105550.0,105540.0,0.47415179]
[1749998083388,1.04306573,105550.0,105540.0,0.51202775]
[1749998083599,1.04306564,105550.0,105540.0,0.5025533]
[1749998083828,1.05253964,105550.0,105540.0,0.5025533]
[1749998084290,1.04306564,105550.0,105540.0,0.5025533]
[1749998084519,1.2345154,105550.0,105540.0,0.23255272]
[1749998084743,1.2345154,105550.0,105540.0,0.20415121]
[1749998084984,1.22504158,105550.0,105540.0,0.20415121]
[1749998085426,1.22504158,105550.0,105540.0,0.19915121]
[1749998085883,1.22504158,105550.0,105540.0,0.20015121]
[1749998086396,1.22504158,105550.0,105540.0,0.20962629]
[1749998086851,1.22504158,105550.0,105540.0,0.4086028]
[1749998087082,1.0047313,105550.0,105540.0,0.27211197]
[1749998087327,1.01420494,105550.0,105540.0,0.29381215]
[1749998087602,1.01420494,105550.0,105540.0,0.45872669]
[1749998087826,1.01420494,105550.0,105540.0,0.4871282]
[1749998088085,1.00473103,105550.0,105540.0,0.48712757]
[1749998088363,1.01420494,105550.0,105540.0,0.48712757]
[1749998088911,1.01420485,105550.0,105540.0,0.48712757]
[1749998089172,0.38822395,105550.0,105540.0,0.50672757]
[1749998090013,0.3787504,105550.0,105540.0,0.50672757]
[1749998090240,0.38822386,105550.0,105540.0,0.50672757]
[1749998090664,0.3976975,105550.0,105540.0,0.50672757]
[1749998091727,0.40717132,105550.0,105540.0,0.50672757]
[1749998091936,0.3976975,105550.0,105540.0,0.50672757]
[1749998092144,0.40717132,105550.0,105540.0,0.50672757]
[1749998092352,0.40717123,105550.0,105540.0,0.50672757]
[1749998093402,0.3787504,105550.0,105540.0,0.50672757]
[1749998093616,0.38822377,105550.0,105540.0,0.50672757]
[1749998093827,0.3787504,105550.0,105540.0,0.50672757]
[1749998094062,0.38822377,105550.0,105540.0,1.1137611]
[1749998094283,0.3787504,105550.0,105540.0,0.50672757]
[1749998094719,0.38822386,105550.0,105540.0,0.50672757]
[1749998094938,0.3787504,105550.0,105540.0,1.1327071]
[1749998095167,0.0387504,105550.0,105540.0,1.25746705]
[1749998095383,0.0387504,105550.0,105540.0,1.21953105]
[1749998095814,0.0387504,105550.0,105540.0,1.25744336]
[1749998096245,0.0387504,105550.0,105540.0,0.61249752]
[1749998096471,0.0387504,105550.0,105540.0,1.25743771]
[1749998096714,0.0387504,105550.0,105540.0,1.21953105]
[1749998097364,0.0387504,105550.0,105540.0,1.26001105]
[1749998097864,0.01004735,105550.0,105540.0,1.26001105]
[1749998098097,0.01004735,105550.0,105540.0,1.69009781]
[1749998098318,0.21892991,105560.0,105550.0,0.86573864]
[1749998098540,0.21892991,105560.0,105550.0,1.0415373]
[1749998098760,0.21892991,105560.0,105550.0,1.07940786]
[1749998100904,0.21892991,105560.0,105550.0,0.9734721]
[1749998101356,0.01,105580.0,105570.0,0.25896381]
[1749998101583,0.01,105580.0,105570.0,0.64003995]
[1749998101584,0.01004736,105580.0,105570.0,0.64003995]
[1749998101813,0.01004736,105580.0,105570.0,0.61165431]
[1749998102482,0.01004736,105580.0,105570.0,0.64001347]
[1749998102706,0.01004736,105580.0,105570.0,0.64201347]
[1749998103405,0.01004736,105580.0,105570.0,1.15262264]
[1749998103622,0.01004736,105580.0,105570.0,0.61365431]
[1749998103843,0.01004736,105580.0,105570.0,0.6419914]
[1749998104297,0.01004736,105580.0,105570.0,0.6399914]
[1749998104543,0.01004736,105580.0,105570.0,0.61165431]
[1749998104760,0.01004736,105580.0,105570.0,0.63997229]
[1749998104979,0.01004736,105580.0,105570.0,0.64297229]
[1749998105202,0.01004736,105580.0,105570.0,1.18194062]
[1749998106115,0.01004736,105580.0,105570.0,0.64297229]
[1749998106808,0.01004736,105580.0,105570.0,0.60512476]
[1749998107020,0.01004736,105580.0,105570.0,1.14409309]
[1749998107244,0.01004736,105580.0,105570.0,1.18194062]
[1749998110163,0.01004736,105580.0,105570.0,1.15362264]
[1749998110386,0.01004736,105580.0,105570.0,1.21039393]
[1749998110624,0.01004736,105580.0,105570.0,1.1725464]
[1749998114210,0.01004736,105580.0,105570.0,1.1724264]
[1749998114875,0.01004736,105580.0,105570.0,1.1914164]
[1749998115094,0.01004736,105580.0,105570.0,1.1724264]
[1749998116671,0.01004736,105580.0,105570.0,0.9766664]
[1749998116898,0.01004736,105580.0,105570.0,1.1724264]
[1749998118503,0.01004736,105580.0,105570.0,1.11565511]
[1749998120522,0.01004736,105580.0,105570.0,1.19154804]
[1749998120747,0.01004736,105580.0,105570.0,0.45681971]
[1749998120969,0.01004736,105580.0,105570.0,1.11565511]
[1749998121198,0.01004736,105580.0,105570.0,0.43743507]
[1749998121419,0.01004736,105580.0,105570.0,0.67086942]
[1749998121899,0.42205685,105590.0,105580.0,0.2178432]
[1749998122133,0.42205685,105590.0,105580.0,0.49212617]
[1749998122344,0.42146138,105590.0,105580.0,0.49212617]
[1749998122561,0.43093117,105590.0,105580.0,0.33680617]
[1749998122784,0.42205685,105590.0,105580.0,0.49212617]
[1749998122998,0.41258707,105590.0,105580.0,0.49212617]
[1749998123220,0.42146139,105590.0,105580.0,0.49212617]
[1749998123460,0.41258707,105590.0,105580.0,0.49212617]
[1749998123677,0.41258707,105590.0,105580.0,0.52039496]
[1749998123892,0.42146143,105590.0,105580.0,0.52239496]
[1749998124109,0.42146144,105590.0,105580.0,0.52239496]
[1749998124326,0.04867437,105590.0,105580.0,0.52239496]
[1749998124547,0.00887437,105590.0,105580.0,0.52239496]
[1749998124781,0.63664394,105600.0,105590.0,0.21782256]
[1749998125004,0.63664394,105600.0,105590.0,0.39586377]
[1749998125238,0.1065501,105600.0,105590.0,0.39586377]
[1749998125459,0.6271747,105600.0,105590.0,0.39586377]
[1749998125677,0.04781199,105600.0,105590.0,0.49210553]
[1749998125895,0.04781226,105600.0,105590.0,0.52037432]
[1749998126115,0.0389374,105600.0,105590.0,0.52037432]
[1749998126336,0.04781243,105600.0,105590.0,0.52037432]
[1749998126812,0.0389374,105600.0,105590.0,0.56007432]
[1749998127024,0.04781255,105600.0,105590.0,0.56007432]
[1749998127258,0.00892264,105600.0,105590.0,1.136717]
[1749998127484,0.00892267,105600.0,105590.0,1.07077386]
[1749998127704,4.735e-05,105600.0,105590.0,1.11044821]
[1749998127921,0.00892271,105600.0,105590.0,1.11044821]
[1749998128142,0.00892271,105600.0,105590.0,1.087727]
[1749998128363,0.00892323,105600.0,105590.0,1.10841585]
[1749998128614,0.00892353,105600.0,105590.0,0.58828146]
[1749998128847,0.00892353,105600.0,105590.0,1.12724979]
[1749998128848,4.735e-05,105600.0,105590.0,1.12724979]
[1749998129255,0.00892359,105600.0,105590.0,0.58828146]
[1749998129495,0.0089236,105600.0,105590.0,0.58828146]
[1749998129774,4.735e-05,105600.0,105590.0,0.59128146]
[1749998131122,0.0089236,105600.0,105590.0,0.59128146]
[1749998131556,4.735e-05,105600.0,105590.0,0.59128146]
[1749998131769,0.03327972,105610.0,105600.0,0.01893839]
[1749998131988,0.39813472,105620.0,105610.0,0.21778132]
[1749998132207,0.94657059,105620.0,105610.0,0.40291602]
[1749998133865,0.94657059,105620.0,105610.0,0.41238428]
[1749998135618,0.97931177,105620.0,105610.0,0.41238428]
[1749998137532,0.44034344,105620.0,105610.0,0.41238428]
[1749998137734,0.97931177,105620.0,105610.0,0.41238428]
[1749998138883,0.44034344,105620.0,105610.0,0.41238428]
[1749998139113,0.97931177,105620.0,105610.0,0.41238428]
[1749998139576,0.44034344,105620.0,105610.0,0.41238428]
[1749998139811,0.97931177,105620.0,105610.0,0.41238428]
[1749998140052,0.96984423,105620.0,105610.0,0.41238428]
[1749998140542,0.92117678,105620.0,105610.0,0.41238428]
[1749998140799,0.92117669,105620.0,105610.0,0.41238428]
[1749998141040,0.93064405,105620.0,105610.0,0.41238428]
[1749998141274,0.92117669,105620.0,105610.0,0.41238428]